fUSD/lending_fUSD_20251220
["ID","MTS","AMOUNT","RATE_DAILY","PERIOD"]
[399281266,1766238033110,-500.0,0.00010583,2]
[399281267,1766238033138,-500.0,0.00010583,2]
[399281268,1766238033171,-500.0,0.00010583,2]
[399281269,1766238033209,-500.0,0.00010583,2]
[399281270,1766238033239,-500.0,0.00010583,2]
[399281271,1766238033280,-500.0,0.00010583,2]
[399281272,1766238033311,-217.72413288,0.00010583,2]
[399281273,1766238041306,-303.08407655,0.00010582,2]
[399281274,1766238041340,-500.0,0.00010582,2]
[399281275,1766238041373,-500.0,0.00010582,2]
[399281276,1766238041405,-500.0,0.00010582,2]
[399281277,1766238041442,-500.0,0.00010582,2]
[399281278,1766238041473,-500.0,0.00010582,2]
[399281279,1766238041512,-500.0,0.00010582,2]
[399281280,1766238041546,-500.0,0.00010582,2]
[399281281,1766238041577,-500.0,0.00010582,2]
[399281282,1766238041609,-500.0,0.00010582,2]
[399281283,1766238042269,-500.0,0.00010582,2]
[399281284,1766238042303,-500.0,0.00010582,2]
[399281285,1766238042337,-469.83043463,0.00010582,2]
[399281286,1766238042367,-500.0,0.00010582,2]
[399281287,1766238042397,-500.0,0.00010582,2]
[399281288,1766238042432,-500.0,0.00010582,2]
[399281289,1766238042467,-500.0,0.00010582,2]
[399281290,1766238042496,-450.53952952,0.00010582,2]
[399281291,1766238042524,-527.52393722,0.00010582,2]
[399281292,1766238042559,-500.0,0.00010582,2]
[399281294,1766238063257,-500.0,0.00010582,2]
[399281296,1766238063292,-500.0,0.00010582,2]
[399281297,1766238063321,-500.0,0.00010582,2]
[399281298,1766238063358,-500.0,0.00010582,2]
[399281299,1766238063388,-500.0,0.00010582,2]
[399281300,1766238063418,-500.0,0.00010582,2]
[399281301,1766238063454,-500.0,0.00010582,2]
[399281302,1766238063488,-500.0,0.00010582,2]
[399281303,1766238063522,-500.0,0.00010582,2]
[399281304,1766238063551,-500.0,0.00010582,2]
[399281305,1766238063751,-500.0,0.00010582,2]
[399281306,1766238063781,-500.0,0.00010582,2]
[399281307,1766238063818,-500.0,0.00010582,2]
[399281308,1766238063849,-500.0,0.00010582,2]
[399281309,1766238063884,-500.0,0.00010582,2]
[399281310,1766238063919,-500.0,0.00010582,2]
[399281311,1766238063954,-500.0,0.00010582,2]
[399281312,1766238063989,-500.0,0.00010582,2]
[399281313,1766238064018,-500.0,0.00010582,2]
[399281314,1766238064051,-500.0,0.00010582,2]
[399281318,1766238073032,-500.0,0.00010582,2]
[399281319,1766238073065,-601.31396642,0.00010582,2]
[399281320,1766238073100,-500.0,0.00010582,2]
[399281321,1766238073134,-500.0,0.00010582,2]
[399281322,1766238073167,-500.0,0.00010582,2]
[399281323,1766238073202,-500.0,0.00010582,2]
[399281324,1766238073248,-500.0,0.00010582,2]
[399281325,1766238073284,-500.0,0.00010582,2]
[399281326,1766238073318,-500.0,0.00010582,2]
[399281327,1766238073354,-297.38206716,0.00010582,2]
[399281328,1766238093307,159.6,0.00010374,2]
[399281329,1766238093389,1514.088,0.00010374,2]
[399281330,1766238118961,-202.61793284,0.00010582,2]
[399281331,1766238119355,-500.0,0.00010582,2]
[399281332,1766238119396,-500.0,0.00010582,2]
[399281333,1766238119440,-500.0,0.00010582,2]
[399281334,1766238119476,-500.0,0.00010582,2]
[399281335,1766238119510,-500.0,0.00010582,2]
[399281336,1766238119543,-500.0,0.00010582,2]
[399281337,1766238119576,-500.0,0.00010582,2]
[399281338,1766238119607,-500.0,0.00010582,2]
[399281339,1766238119639,-500.0,0.00010582,2]
[399281340,1766238119671,-94.77413432,0.00010582,2]
[399281344,1766238190332,2500.0,0.00010485,2]
[399281354,1766238327610,2291.7521,0.00010485,2]
[399281355,1766238333884,5208.2579,0.00010485,2]
[399281356,1766238333907,10000.01,0.00010485,2]
[399281357,1766238333934,10000.01,0.00010485,2]
[399281358,1766238333957,10000.01,0.00010485,2]
[399281359,1766238333981,10000.01,0.00010485,2]
[399281360,1766238334005,10000.01,0.00010485,2]
[399281361,1766238334028,10000.01,0.00010485,2]
[399281362,1766238334052,10000.01,0.00010485,2]
[399281363,1766238334080,10000.01,0.00010485,2]
[399281364,1766238334105,2421.4621,0.00010485,2]
[399281365,1766238339938,2500.0,0.00010485,2]
[399281367,1766238376669,173.29,9.189e-05,2]
[399281368,1766238382950,1407.9612,0.00010485,2]
[399281371,1766238431413,150.0,0.00022,30]
[399281380,1766238462437,3497.2967,0.00010485,2]
[399281381,1766238462464,10000.01,0.00010485,2]
[399281382,1766238462490,10000.01,0.00010485,2]
[399281383,1766238462516,10000.01,0.00010485,2]
[399281384,1766238462543,10000.01,0.00010485,2]
[399281385,1766238462570,3232.0409,0.00010485,2]
[399281390,1766238468357,2500.0,0.00010485,2]
[399281403,1766238577544,4267.9691,0.00010482,2]
[399281404,1766238577573,10000.01,0.00010482,2]
[399281405,1766238577600,10000.01,0.00010482,2]
[399281406,1766238577630,10000.01,0.00010482,2]
[399281407,1766238577655,10000.01,0.00010482,2]
[399281408,1766238577681,10000.01,0.00010482,2]
[399281409,1766238577709,10000.01,0.00010482,2]
[399281410,1766238577734,10000.01,0.00010482,2]
[399281411,1766238577758,10000.01,0.00010482,2]
[399281412,1766238577782,10000.01,0.00010482,2]
[399281413,1766238601510,491.0,0.00010481,2]
[399281414,1766238601549,300.0,0.00010481,2]
[399281415,1766238601602,300.0,0.00010481,2]
[399281416,1766238603257,236.0,0.00010482,2]
[399281437,1766238632404,-53743.72635033,0.00010482,2]
[399281438,1766238632416,-5373.98991245,0.00010482,2]
[399281439,1766238632427,-21449.20081955,0.00010482,2]
[399281440,1766238632439,-609.653476,0.00010482,2]
[399281441,1766238632450,-1498.41572974,0.00010482,2]
[399281442,1766238632471,-4097.45617129,0.00010482,2]
[399281443,1766238632482,-1148.21986739,0.00010482,2]
[399281444,1766238632493,-13403.45671683,0.00010482,2]
[399281445,1766238632503,-4402.16735575,0.00010482,2]
[399281446,1766238632514,-6032.81752449,0.00010482,2]
[399281447,1766238632525,-4573.2,0.00010482,2]
[399281448,1766238632536,-32222.94331177,0.00010482,2]
[399281449,1766238632549,-377.31369087,0.00010482,2]
[399281450,1766238632560,-1123.04045911,0.00010482,2]
[399281451,1766238633495,235.92102121,0.00010481,2]
[399281452,1766238634158,500.0,0.00010481,2]
[399281453,1766238634220,500.0,0.00010481,2]
[399281454,1766238634272,246.89617976,0.00010481,2]
[399281455,1766238634316,500.0,0.00010481,2]
[399281456,1766238634393,500.0,0.00010481,2]
[399281457,1766238634433,391.94710414,0.00010481,2]
[399281458,1766238634510,500.0,0.00010481,2]
[399281459,1766238634572,500.0,0.00010481,2]
[399281460,1766238634633,500.0,0.00010481,2]
[399281461,1766238634698,500.0,0.00010481,2]
[399281462,1766238634762,500.0,0.00010481,2]
[399281463,1766238634813,500.0,0.00010481,2]
[399281464,1766238634874,500.0,0.00010481,2]
[399281465,1766238634924,500.0,0.00010481,2]
[399281466,1766238634971,500.0,0.00010481,2]
[399281467,1766238635039,500.0,0.00010481,2]
[399281468,1766238635092,500.0,0.00010481,2]
[399281469,1766238635137,298.24569489,0.00010481,2]
[399281470,1766238635165,201.75430511,0.00010481,2]
[399281471,1766238635221,574.83467575,0.00010481,2]
[399281472,1766238635268,500.0,0.00010481,2]
[399281473,1766238635309,500.0,0.00010481,2]
[399281474,1766238635351,500.0,0.00010481,2]
[399281475,1766238635394,500.0,0.00010481,2]
[399281476,1766238635440,500.0,0.00010481,2]
[399281477,1766238635480,500.0,0.00010481,2]
[399281478,1766238635522,500.0,0.00010481,2]
[399281479,1766238635566,500.0,0.00010481,2]
[399281480,1766238635607,500.0,0.00010481,2]
[399281481,1766238635657,500.0,0.00010481,2]
[399281482,1766238635700,500.0,0.00010481,2]
[399281483,1766238635744,500.0,0.00010481,2]
[399281484,1766238638171,-1000.0,0.00010482,2]
[399281485,1766238638182,-771.65510317,0.00010482,2]
[399281486,1766238638232,-60586.15097523,0.00010482,2]
[399281487,1766238638243,-1134.22,0.00010482,2]
[399281488,1766238638293,-642.76071279,0.00010482,2]
[399281498,1766238640218,-9155.84279121,0.00010482,2]
[399281499,1766238640229,-587.814201,0.00010482,2]
[399281500,1766238640280,-10572.10493126,0.00010482,2]
[399281501,1766238640291,-3389.19645253,0.00010482,2]
[399281502,1766238640301,-9120.91694568,0.00010482,2]
[399281503,1766238640511,-8143.50243499,0.00010482,2]
[399281504,1766238640523,-650572.17496657,0.00010482,2]
[399281505,1766238640532,-23858.7574,0.00010485,2]
[399281506,1766238640541,-2500.0,0.00010485,2]
[399281507,1766238640549,-190.32381134,0.00010577,2]
[399281508,1766238640558,-300.0,0.00010577,2]
[399281509,1766238640568,-150.0,0.00010578,2]
[399281510,1766238640780,-821.0,0.00010578,2]
[399281511,1766238640790,-500.0,0.00010579,2]
[399281512,1766238640799,-242.81122529,0.00010579,2]
[399281513,1766238640809,-500.0,0.00010579,2]
[399281514,1766238640818,-500.0,0.00010579,2]
[399281515,1766238640828,-500.0,0.00010579,2]
[399281516,1766238640837,-500.0,0.00010579,2]
[399281517,1766238640847,-500.0,0.00010579,2]
[399281518,1766238640857,-500.0,0.00010579,2]
[399281519,1766238640867,-500.0,0.00010579,2]
[399281520,1766238640876,-151.0,0.00010579,2]
[399281521,1766238640886,-500.0,0.00010579,2]
[399281522,1766238640895,-500.0,0.00010579,2]
[399281523,1766238640905,-151.0,0.00010579,2]
[399281524,1766238640915,-500.0,0.00010579,2]
[399281525,1766238640924,-151.0,0.00010579,2]
[399281526,1766238640933,-151.0,0.00010579,2]
[399281527,1766238640942,-500.0,0.00010579,2]
[399281528,1766238640951,-151.0,0.00010579,2]
[399281529,1766238640960,-151.0,0.00010579,2]
[399281530,1766238640969,-151.0,0.00010579,2]
[399281531,1766238640979,-151.0,0.00010579,2]
[399281532,1766238640988,-151.0,0.00010579,2]
[399281533,1766238640999,-200.0,0.00010579,2]
[399281534,1766238641008,-151.0,0.00010579,2]
[399281535,1766238641018,-200.0,0.00010579,2]
[399281536,1766238641027,-151.0,0.00010579,2]
[399281537,1766238641037,-151.0,0.00010579,2]
[399281538,1766238641048,-151.0,0.00010579,2]
[399281539,1766238641058,-151.0,0.00010579,2]
[399281540,1766238641069,-151.0,0.00010579,2]
[399281541,1766238641079,-151.0,0.00010579,2]
[399281542,1766238641090,-151.0,0.00010579,2]
[399281543,1766238641102,-151.0,0.00010579,2]
[399281544,1766238641112,-151.0,0.00010579,2]
[399281545,1766238641122,-200.0,0.00010579,2]
[399281546,1766238641131,-151.0,0.00010579,2]
[399281547,1766238641141,-151.0,0.00010579,2]
[399281548,1766238641150,-151.0,0.00010579,2]
[399281549,1766238641160,-151.0,0.00010579,2]
[399281550,1766238641169,-151.0,0.00010579,2]
[399281551,1766238641179,-151.0,0.00010579,2]
[399281552,1766238641189,-151.0,0.00010579,2]
[399281553,1766238641199,-151.0,0.00010579,2]
[399281554,1766238641208,-151.0,0.00010579,2]
[399281555,1766238641217,-151.0,0.00010579,2]
[399281556,1766238641227,-151.0,0.00010579,2]
[399281557,1766238641237,-151.0,0.00010579,2]
[399281558,1766238641246,-1175.31,0.00010579,2]
[399281559,1766238641255,-200.0,0.00010583,2]
[399281560,1766238641264,-31875.2838,0.00010585,2]
[399281561,1766238641274,-200.0,0.00010689,2]
[399281562,1766238641283,-1072.74,0.00010783,2]
[399281563,1766238641292,-200.0,0.00010796,2]
[399281564,1766238641302,-1175.31,0.00010853,2]
[399281565,1766238641313,-1481.86943874,0.000109,2]
[399281566,1766238641322,-200.0,0.00010904,2]
[399281567,1766238641331,-200.0,0.00011013,2]
[399281568,1766238641341,-322.96,0.00011064,2]
[399281569,1766238641350,-9999.99,0.00011064,2]
[399281570,1766238641359,-2510.24,0.00011064,2]
[399281571,1766238641368,-9999.99,0.00011064,2]
[399281572,1766238641377,-4999.99,0.00011064,2]
[399281573,1766238641386,-9999.99,0.00011064,2]
[399281574,1766238641395,-299.99,0.00011064,2]
[399281575,1766238641404,-150.99,0.00011064,2]
[399281576,1766238641413,-999.99,0.00011099,2]
[399281577,1766238641423,-150.99,0.00011099,2]
[399281578,1766238641432,-21429.70272653,0.00011099,2]
[399281579,1766238641441,-29148.88255936,0.00011099,2]
[399281580,1766238641451,-500.0,0.00011127,2]
[399281581,1766238641461,-200.0,0.00011127,2]
[399281582,1766238641470,-200.0,0.00011127,2]
[399281583,1766238641479,-1175.31,0.00011127,2]
[399281584,1766238641488,-29148.88255932,0.00011198,2]
[399281585,1766238641497,-21429.70272646,0.00011198,2]
[399281586,1766238641507,-500.0,0.00011209,2]
[399281587,1766238641516,-1175.31,0.00011401,2]
[399281588,1766238641525,-166.68,0.00011438,2]
[399281589,1766238641535,-1481.86943874,0.00011491,2]
[399281590,1766238641544,-195.0,0.0001153,2]
[399281591,1766238641553,-300.0,0.0001153,2]
[399281592,1766238641562,-255.0,0.00011604,2]
[399281593,1766238641571,-420.0,0.00011628,2]
[399281594,1766238641580,-195.0,0.00011635,2]
[399281595,1766238641589,-300.0,0.00011635,2]
[399281596,1766238641598,-250.0,0.00011635,2]
[399281597,1766238641607,-300.0,0.00011635,2]
[399281598,1766238641616,-250.0,0.00011635,2]
[399281599,1766238641625,-195.0,0.00011635,2]
[399281600,1766238641635,-250.0,0.00011636,2]
[399281601,1766238641649,-542.48742341,0.00011675,2]
[399281602,1766238641659,-200.0,0.00011675,2]
[399281603,1766238641668,-249.0,0.00011675,2]
[399281604,1766238641678,-1175.31,0.00011675,2]
[399281605,1766238641689,-262.27,0.00011874,2]
[399281606,1766238641698,-151.0,0.00011908,2]
[399281607,1766238641708,-29148.88255932,0.00011911,2]
[399281608,1766238641720,-21429.70272646,0.00011911,2]
[399281609,1766238641729,-1175.31,0.00011949,2]
[399281610,1766238641738,-246.05,0.00011961,2]
[399281611,1766238641747,-201.44195328,0.00012223,2]
[399281612,1766238641757,-1175.31,0.00012223,2]
[399281613,1766238641766,-1481.86943874,0.00012392,2]
[399281614,1766238641775,-500.0,0.00012426,2]
[399281615,1766238641784,-500.0,0.00012426,2]
[399281616,1766238641793,-157.0,0.00012426,2]
[399281617,1766238641802,-500.0,0.00012426,2]
[399281618,1766238641811,-162.87078705,0.00012426,2]
[399281619,1766238641821,-500.0,0.00012426,2]
[399281620,1766238641831,-500.0,0.00012438,2]
[399281621,1766238641841,-1175.31,0.00012497,2]
[399281622,1766238641850,-262.27,0.00012534,2]
[399281623,1766238641859,-258.35726114,0.00012613,2]
[399281624,1766238641868,-29148.88255932,0.00012623,2]
[399281625,1766238641878,-21429.70272646,0.00012623,2]
[399281626,1766238641887,-433.0,0.00012725,2]
[399281627,1766238641896,-1175.31,0.00012771,2]
[399281628,1766238641905,-587.0,0.00012783,2]
[399281629,1766238641915,-186.28,0.00012837,2]
[399281630,1766238641925,-500.0,0.00012974,2]
[399281631,1766238641935,-1000.0,0.00012974,2]
[399281632,1766238641945,-1000.0,0.00012974,2]
[399281633,1766238641955,-1000.0,0.00012974,2]
[399281634,1766238641964,-1175.31,0.00013045,2]
[399281635,1766238641974,-262.27,0.00013193,2]
[399281636,1766238641985,-1481.86943874,0.00013294,2]
[399281637,1766238641994,-207.4,0.00013318,2]
[399281638,1766238642004,-1175.31,0.00013319,2]
[399281639,1766238642013,-166.68,0.00013326,2]
[399281640,1766238642022,-29148.88255932,0.00013336,2]
[399281641,1766238642031,-21429.70272646,0.00013336,2]
[399281642,1766238642041,-500.0,0.00013452,2]
[399281643,1766238642050,-830.71256854,0.00013522,2]
[399281644,1766238642059,-1500.0,0.00013522,2]
[399281645,1766238642068,-1502.00400434,0.00013522,2]
[399281646,1766238642078,-500.0,0.00013526,2]
[399281647,1766238642088,-150.0,0.00013526,2]
[399281648,1766238642097,-200.0,0.00013526,2]
[399281649,1766238642110,-200.0,0.00013526,2]
[399281650,1766238642119,-200.0,0.00013526,2]
[399281651,1766238642129,-500.0,0.00013526,2]
[399281652,1766238642138,-500.0,0.00013526,2]
[399281653,1766238642147,-500.0,0.00013526,2]
[399281654,1766238642155,-150.0,0.00013526,2]
[399281655,1766238642165,-805.0,0.00013526,2]
[399281656,1766238642174,-500.0,0.00013526,2]
[399281657,1766238642183,-500.0,0.00013526,2]
[399281658,1766238642192,-150.0,0.00013526,2]
[399281659,1766238642202,-500.0,0.00013526,2]
[399281660,1766238642211,-150.0,0.00013526,2]
[399281661,1766238642221,-500.0,0.00013526,2]
[399281662,1766238642231,-150.0,0.00013526,2]
[399281663,1766238642240,-500.0,0.00013526,2]
[399281664,1766238642249,-500.0,0.00013526,2]
[399281665,1766238642259,-515.0,0.00013526,2]
[399281666,1766238642268,-150.0,0.00013526,2]
[399281667,1766238642277,-500.0,0.00013526,2]
[399281668,1766238642286,-1175.33,0.00013593,2]
[399281669,1766238642296,-205.63,0.00013661,2]
[399281670,1766238642307,-528.93385388,0.00013663,2]
[399281671,1766238642316,-500.0,0.00013663,2]
[399281672,1766238642326,-500.0,0.00013663,2]
[399281673,1766238642336,-500.0,0.00013663,2]
[399281674,1766238642345,-150.0,0.00013663,2]
[399281675,1766238642356,-805.0,0.00013663,2]
[399281676,1766238642366,-500.0,0.00013663,2]
[399281677,1766238642375,-500.0,0.00013663,2]
[399281678,1766238642384,-150.0,0.00013663,2]
[399281679,1766238642394,-500.0,0.00013663,2]
[399281680,1766238642404,-150.0,0.00013663,2]
[399281681,1766238642413,-500.0,0.00013663,2]
[399281682,1766238642424,-250.0,0.00013663,2]
[399281683,1766238642434,-500.0,0.00013663,2]
[399281684,1766238642443,-500.0,0.00013663,2]
[399281685,1766238642452,-515.0,0.00013663,2]
[399281686,1766238642462,-500.0,0.00013663,2]
[399281687,1766238642471,-500.0,0.00013698,2]
[399281688,1766238642480,-500.0,0.00013698,2]
[399281689,1766238642489,-500.0,0.00013698,2]
[399281690,1766238642498,-500.0,0.00013698,2]
[399281691,1766238642507,-506.44561835,0.00013698,2]
[399281692,1766238642516,-500.0,0.00013698,2]
[399281693,1766238642525,-500.0,0.00013698,2]
[399281694,1766238642535,-500.0,0.00013698,2]
[399281695,1766238642545,-500.0,0.00013698,2]
[399281696,1766238642556,-500.0,0.00013698,2]
[399281697,1766238642565,-500.0,0.00013698,2]
[399281698,1766238642575,-260.33789622,0.00013698,2]
[399281699,1766238642584,-500.0,0.00013698,2]
[399281700,1766238642593,-500.0,0.00013698,2]
[399281701,1766238642602,-500.0,0.00013698,2]
[399281702,1766238642611,-500.0,0.00013698,2]
[399281703,1766238642620,-500.0,0.00013698,2]
[399281704,1766238642630,-500.0,0.00013698,2]
[399281705,1766238642639,-316.06547294,0.00013698,2]
[399281706,1766238642651,-500.0,0.00013698,2]
[399281707,1766238642663,-500.0,0.00013698,2]
[399281708,1766238642673,-509.67980687,0.00013698,2]
[399281709,1766238642682,-500.0,0.00013698,2]
[399281710,1766238642691,-500.0,0.00013698,2]
[399281711,1766238642700,-500.0,0.00013698,2]
[399281712,1766238642710,-500.0,0.00013698,2]
[399281713,1766238642720,-491.39149488,0.00013698,2]
[399281714,1766238642730,-500.0,0.00013698,2]
[399281715,1766238642739,-500.0,0.00013698,2]
[399281716,1766238642749,-500.0,0.00013698,2]
[399281717,1766238642758,-500.0,0.00013698,2]
[399281718,1766238642769,-500.0,0.00013698,2]
[399281719,1766238642779,-500.0,0.00013698,2]
[399281720,1766238642789,-500.0,0.00013698,2]
[399281721,1766238642800,-236.05898136,0.00013698,2]
[399281722,1766238642810,-286.12837513,0.00013698,2]
[399281723,1766238642820,-500.0,0.00013698,2]
[399281724,1766238642829,-500.0,0.00013698,2]
[399281725,1766238642838,-500.0,0.00013698,2]
[399281726,1766238642847,-500.0,0.00013698,2]
[399281727,1766238642858,-500.0,0.00013698,2]
[399281728,1766238642867,-500.0,0.00013698,2]
[399281729,1766238642877,-500.0,0.00013698,2]
[399281730,1766238642886,-500.0,0.00013698,2]
[399281731,1766238642895,-487.49534907,0.00013698,2]
[399281732,1766238642905,-500.0,0.00013698,2]
[399281733,1766238642914,-500.0,0.00013698,2]
[399281734,1766238642924,-500.0,0.00013698,2]
[399281735,1766238642943,-500.0,0.00013698,2]
[399281736,1766238642953,-500.0,0.00013698,2]
[399281737,1766238642964,-500.0,0.00013698,2]
[399281738,1766238642973,-500.0,0.00013698,2]
[399281739,1766238642983,-500.0,0.00013698,2]
[399281740,1766238642993,-500.0,0.00013698,2]
[399281741,1766238643002,-500.0,0.00013698,2]
[399281743,1766238643013,-500.0,0.00013698,2]
[399281744,1766238643033,-500.0,0.00013698,2]
[399281746,1766238643042,-500.0,0.00013698,2]
[399281747,1766238643052,-500.0,0.00013698,2]
[399281748,1766238643061,-500.0,0.00013698,2]
[399281749,1766238643071,-500.0,0.00013698,2]
[399281751,1766238643082,-500.0,0.00013698,2]
[399281753,1766238643091,-500.0,0.00013698,2]
[399281754,1766238643100,-500.0,0.00013698,2]
[399281755,1766238643109,-500.0,0.00013698,2]
[399281756,1766238643119,-500.0,0.00013698,2]
[399281757,1766238643128,-500.0,0.00013698,2]
[399281758,1766238643138,-500.0,0.00013698,2]
[399281759,1766238643146,-500.0,0.00013699,2]
[399281760,1766238643156,-500.0,0.00013699,2]
[399281761,1766238643166,-371.81474559,0.00013699,2]
[399281762,1766238643177,-606.32744867,0.00013699,2]
[399281763,1766238643186,-500.0,0.00013699,2]
[399281765,1766238643195,-500.0,0.00013699,2]
[399281767,1766238643204,-500.0,0.00013699,2]
[399281768,1766238643213,-500.0,0.00013699,2]
[399281769,1766238643222,-500.0,0.00013699,2]
[399281770,1766238643231,-173.29,0.00013783,2]
[399281771,1766238643241,-500.0,0.000138,2]
[399281772,1766238643250,-500.0,0.000138,2]
[399281773,1766238643259,-500.0,0.000138,2]
[399281774,1766238643268,-250.0,0.000138,2]
[399281775,1766238643277,-805.0,0.000138,2]
[399281776,1766238643286,-500.0,0.000138,2]
[399281777,1766238643295,-353.74835527,0.000138,2]
[399281778,1766238643304,-151.21834691,0.000138,2]
[399281779,1766238643313,-500.0,0.000138,2]
[399281780,1766238643322,-150.0,0.000138,2]
[399281781,1766238643331,-200.0,0.000138,2]
[399281782,1766238643341,-500.0,0.000138,2]
[399281783,1766238643350,-500.0,0.000138,2]
[399281784,1766238643360,-515.0,0.000138,2]
[399281785,1766238643370,-500.0,0.000138,2]
[399281786,1766238643380,-250.0,0.0001385,2]
[399281787,1766238643390,-262.27,0.00013853,2]
[399281788,1766238643401,-500.0,0.00013937,2]
[399281789,1766238643412,-500.0,0.00013937,2]
[399281790,1766238643422,-500.0,0.00013937,2]
[399281791,1766238643432,-805.0,0.00013937,2]
[399281792,1766238643443,-500.0,0.00013937,2]
[399281793,1766238643452,-500.0,0.00013937,2]
[399281794,1766238643462,-500.0,0.00013937,2]
[399281795,1766238643471,-515.0,0.00013937,2]
[399281796,1766238643480,-500.0,0.00013937,2]
[399281797,1766238643489,-380.0,0.00013963,2]
[399281798,1766238643498,-29148.88255932,0.00014049,2]
[399281799,1766238643507,-21429.70272646,0.00014049,2]
[399281800,1766238643517,-823.0,0.00014053,2]
[399281801,1766238643527,-1501.47727649,0.0001407,2]
[399281802,1766238643535,-500.0,0.00014074,2]
[399281803,1766238643546,-500.0,0.00014074,2]
[399281804,1766238643555,-500.0,0.00014074,2]
[399281805,1766238643564,-805.0,0.00014074,2]
[399281806,1766238643574,-500.0,0.00014074,2]
[399281807,1766238643583,-500.0,0.00014074,2]
[399281808,1766238643592,-500.0,0.00014074,2]
[399281809,1766238643601,-515.0,0.00014074,2]
[399281810,1766238643612,-500.0,0.00014074,2]
[399281811,1766238643622,-1481.86943874,0.00014195,2]
[399281812,1766238643632,-500.0,0.00014211,2]
[399281813,1766238643647,-500.0,0.00014211,2]
[399281814,1766238643657,-500.0,0.00014211,2]
[399281815,1766238643666,-805.0,0.00014211,2]
[399281816,1766238643675,-500.0,0.00014211,2]
[399281817,1766238643686,-500.0,0.00014211,2]
[399281818,1766238643696,-500.0,0.00014211,2]
[399281819,1766238643705,-515.0,0.00014211,2]
[399281820,1766238643716,-500.0,0.00014211,2]
[399281821,1766238643726,-500.0,0.00014348,2]
[399281822,1766238643735,-500.0,0.00014348,2]
[399281823,1766238643745,-500.0,0.00014348,2]
[399281824,1766238643756,-805.0,0.00014348,2]
[399281825,1766238643766,-500.0,0.00014348,2]
[399281826,1766238643775,-500.0,0.00014348,2]
[399281827,1766238643784,-421.69482467,0.00014348,2]
[399281828,1766238643794,-515.0,0.00014348,2]
[399281829,1766238643804,-500.0,0.00014348,2]
[399281830,1766238643813,-150.0,0.00014461,2]
[399281831,1766238643823,-500.0,0.00014485,2]
[399281832,1766238643833,-500.0,0.00014485,2]
[399281833,1766238643842,-500.0,0.00014485,2]
[399281834,1766238643851,-805.0,0.00014485,2]
[399281835,1766238643861,-500.0,0.00014485,2]
[399281836,1766238643871,-374.88126201,0.00014485,2]
[399281837,1766238643880,-515.0,0.00014485,2]
[399281838,1766238643890,-500.0,0.00014485,2]
[399281839,1766238643900,-153.78508436,0.00014485,2]
[399281840,1766238643909,-1785.47061055,0.00014485,2]
[399281841,1766238643919,-209.40437685,0.00014485,2]
[399281842,1766238643928,-500.0,0.00014485,2]
[399281843,1766238643937,-500.0,0.00014485,2]
[399281844,1766238643946,-500.0,0.00014485,2]